bitfinex-derivatives/quotes_BTCF0:USTF0_20240905
["timestamp","ask_amount","ask_price","bid_price","bid_amount"]
[1725529202239,0.47202728,56790.0,56789.0,0.00120001]
[1725529202438,0.38397928,56790.0,56789.0,0.00120001]
[1725529203142,0.28237928,56790.0,56789.0,0.00120001]
[1725529203341,0.28237928,56790.0,56789.0,0.08912901]
[1725529203342,0.42090579,56790.0,56789.0,0.08912901]
[1725529203551,0.35775778,56790.0,56789.0,0.50268801]
[1725529203736,0.06314801,56797.0,56789.0,0.3608]
[1725529203929,0.04311527,56796.0,56793.0,0.088043]
[1725529204139,0.04311527,56795.0,56794.0,0.088041]
[1725529204838,0.04311527,56795.0,56794.0,0.328041]
[1725529205234,0.3608,56816.0,56797.0,0.24]
[1725529205434,0.448807,56816.0,56815.0,0.242]
[1725529205629,0.448807,56816.0,56815.0,0.002]
[1725529206042,0.976847,56816.0,56815.0,0.002]
[1725529206347,0.448807,56816.0,56815.0,0.002]
[1725529206533,0.449807,56816.0,56815.0,0.016]
[1725529206731,0.088009,56815.0,56813.0,0.24]
[1725529206939,0.002,56814.0,56813.0,0.24]
[1725529207746,0.002,56814.0,56810.0,0.01680599]
[1725529207747,1.13004,56814.0,56810.0,0.01680599]
[1725529207944,0.3628,56811.0,56810.0,0.01680599]
[1725529208841,1.578895,56811.0,56810.0,0.00026421]
[1725529209040,0.088023,56806.0,56803.0,0.32650571]
[1725529209243,0.002,56804.0,56803.0,0.08650571]
[1725529210245,0.002,56804.0,56803.0,0.10268679]
[1725529210436,0.002,56804.0,56803.0,0.12557808]
[1725529210946,0.12388238,56804.0,56803.0,0.12757808]
[1725529211143,0.21190838,56804.0,56803.0,0.02707237]
[1725529211349,0.090026,56804.0,56803.0,0.02489129]
[1725529211543,0.21191358,56804.0,56803.0,0.02489129]
[1725529211844,0.21191318,56804.0,56803.0,0.02489129]
[1725529212038,0.090026,56804.0,56803.0,0.02489129]
[1725529212244,0.002,56804.0,56803.0,0.02489129]
[1725529213052,0.21191318,56804.0,56803.0,0.02489129]
[1725529213348,0.21191318,56804.0,56803.0,0.016]
[1725529213349,1.50125753,56804.0,56803.0,0.016]
[1725529213645,1.76363007,56804.0,56803.0,0.028]
[1725529214551,1.62429312,56804.0,56803.0,0.028]
[1725529214843,1.67833536,56804.0,56803.0,0.028]
[1725529215549,1.67834014,56804.0,56803.0,0.028]
[1725529216553,1.85251133,56804.0,56803.0,0.028]
[1725529217850,1.67834014,56804.0,56803.0,0.028]
[1725529218638,1.25251515,56804.0,56803.0,0.028]
[1725529218845,1.07834014,56804.0,56803.0,0.028]
[1725529219052,1.25251515,56804.0,56803.0,0.028]
[1725529219248,1.25251515,56804.0,56803.0,0.268]
[1725529219249,0.22219414,56804.0,56803.0,0.268]
[1725529220051,0.37897825,56804.0,56803.0,0.268]
[1725529220352,0.16815158,56804.0,56803.0,0.268]
[1725529220547,0.16715158,56804.0,56803.0,0.24]
[1725529220847,0.16715158,56804.0,56803.0,0.268]
[1725529221150,0.13316041,56804.0,56803.0,0.36462883]
[1725529221655,0.13316041,56804.0,56803.0,0.38116024]
[1725529222156,0.07912558,56804.0,56803.0,0.38116024]
[1725529222351,0.13316011,56804.0,56803.0,0.38116024]
[1725529222945,0.19629917,56804.0,56803.0,0.2241689]
[1725529223154,0.42292472,56804.0,56803.0,0.2241689]
[1725529223546,0.19629917,56804.0,56803.0,0.2241689]
[1725529224752,0.42281567,56804.0,56803.0,0.2241689]
[1725529225141,0.19629917,56804.0,56803.0,0.2241689]
[1725529225346,0.142252,56804.0,56803.0,0.2241689]
[1725529225547,0.1962857,56804.0,56803.0,0.2241689]
[1725529226656,0.1962857,56804.0,56803.0,0.1361419]
[1725529227256,0.1962857,56804.0,56803.0,0.1221419]
[1725529227457,0.1962857,56804.0,56803.0,0.1361419]
[1725529229855,0.21852429,56804.0,56803.0,0.2241689]
[1725529230054,0.07911294,56804.0,56803.0,0.2241689]
[1725529230252,0.14141174,56804.0,56803.0,0.2241689]
[1725529231056,0.21852468,56804.0,56803.0,0.2241689]
[1725529232352,0.54655068,56804.0,56803.0,0.04453141]
[1725529232548,0.46333789,56804.0,56803.0,0.04453141]
[1725529232749,0.51737062,56804.0,56803.0,0.04453141]
[1725529233458,0.46117167,56804.0,56803.0,0.04453141]
[1725529234560,0.63543586,56804.0,56803.0,0.04453141]
[1725529234759,0.46117167,56804.0,56803.0,0.04453141]
[1725529235454,0.4611838,56804.0,56803.0,0.04453141]
[1725529236558,0.65287441,56804.0,56803.0,0.04453141]
[1725529237156,1.01367441,56804.0,56803.0,0.04453141]
[1725529237463,0.6819838,56804.0,56803.0,0.04453141]
[1725529237860,0.6819838,56804.0,56800.0,0.21449327]
[1725529237861,0.088031,56801.0,56800.0,0.21449327]
[1725529238059,0.28433212,56801.0,56799.0,0.088033]
[1725529238360,0.19430112,56800.0,56799.0,0.10879997]
[1725529239650,0.19430112,56800.0,56799.0,0.34879997]
[1725529239962,0.50909641,56800.0,56799.0,0.27476697]
[1725529240662,0.50909641,56800.0,56799.0,0.28876697]
[1725529241664,0.33772722,56800.0,56799.0,0.28876697]
[1725529241861,0.50909712,56800.0,56799.0,0.28876697]
[1725529244460,0.28233312,56800.0,56799.0,0.28876697]
[1725529245057,0.24415464,56800.0,56799.0,0.28876697]
[1725529245463,0.15612264,56800.0,56799.0,0.28876697]
[1725529245665,0.15612242,56800.0,56799.0,0.27476697]
[1725529245868,0.15712242,56800.0,56799.0,0.28876697]
[1725529246366,0.03500702,56800.0,56799.0,0.28876697]
[1725529246564,0.03500702,56800.0,56799.0,0.37680097]
[1725529246770,0.03365497,56803.0,56799.0,1.86576097]
[1725529246961,0.12241504,56809.0,56808.0,0.08802]
[1725529247268,0.03426496,56809.0,56808.0,0.32802]
[1725529247571,0.03426496,56809.0,56808.0,1.4561]
[1725529247771,0.03426496,56809.0,56808.0,1.46487207]
[1725529248066,0.00026341,56809.0,56808.0,1.46487207]
[1725529248258,0.0287994,56809.0,56808.0,1.46487207]
[1725529248662,0.0287994,56809.0,56808.0,1.47887207]
[1725529248866,0.0207994,56809.0,56808.0,1.4701]
[1725529249063,0.02853501,56819.0,56808.0,1.39087938]
[1725529249263,0.06253125,56818.0,56813.0,0.3608]
[1725529250765,0.06253125,56817.0,56813.0,0.3608]
[1725529250970,0.088003,56819.0,56816.0,0.24]
[1725529251173,0.06252965,56818.0,56816.0,0.24]
[1725529251374,0.06252965,56817.0,56816.0,0.24]
[1725529251870,0.03399538,56817.0,56816.0,0.24]
[1725529252375,0.02853427,56817.0,56816.0,0.328007]
[1725529252571,0.10452958,56817.0,56816.0,0.34860348]
[1725529252875,0.10452958,56818.0,56817.0,0.088006]
[1725529253177,0.13956046,56821.0,56820.0,0.088001]
[1725529253369,0.0285306,56821.0,56820.0,0.330001]
[1725529253564,0.0716223,56821.0,56820.0,0.330001]
[1725529254472,0.0716223,56821.0,56820.0,0.344001]
[1725529256163,0.0716223,56821.0,56820.0,0.358001]
[1725529256565,0.0285306,56821.0,56820.0,0.358001]
[1725529256783,0.07162191,56821.0,56820.0,0.358001]
[1725529258069,0.21118237,56821.0,56820.0,0.358001]
[1725529258475,0.0285306,56821.0,56820.0,0.358001]
[1725529259069,0.0285306,56821.0,56820.0,1.485961]
[1725529259372,0.15024505,56821.0,56820.0,1.485961]
[1725529259577,0.12171508,56822.0,56821.0,0.088]
[1725529259778,0.15024501,56822.0,56821.0,0.8809]
[1725529259979,0.15024501,56822.0,56821.0,0.740025]
[1725529259980,0.12563187,56822.0,56821.0,0.740025]
[1725529260181,0.12563187,56822.0,56821.0,0.828025]
[1725529260878,0.06311172,56830.0,56821.0,0.740025]
[1725529260879,0.15109872,56830.0,56821.0,0.740025]
[1725529261172,0.15109872,56830.0,56821.0,0.014]
[1725529261173,0.175996,56822.0,56821.0,0.014]
[1725529261367,0.54162808,56822.0,56821.0,0.014]
[1725529261571,0.6047398,56822.0,56821.0,0.014]
[1725529261771,0.3180972,56822.0,56821.0,0.014]
[1725529261972,0.21363008,56822.0,56821.0,0.014]
[1725529262173,0.12563208,56822.0,56821.0,0.014]
[1725529262375,0.15962751,56822.0,56821.0,0.028]
[1725529263668,0.15962751,56822.0,56821.0,0.116]
[1725529264978,0.15962751,56822.0,56821.0,0.64396]
[1725529264979,0.11738338,56822.0,56821.0,0.64396]
[1725529265280,0.11738338,56822.0,56821.0,1.25266791]
[1725529265883,0.10938338,56822.0,56821.0,1.24396]
[1725529266273,0.10938338,56822.0,56821.0,1.25285461]
[1725529266274,0.08358338,56822.0,56821.0,1.25285461]
[1725529266780,0.0934,56834.0,56828.0,0.087989]
[1725529266968,0.05400655,56833.0,56828.0,0.45761932]
[1725529267167,0.05400655,56832.0,56828.0,0.45761932]
[1725529267368,0.05400655,56831.0,56828.0,0.45761932]
[1725529267572,0.06311172,56836.0,56831.0,0.087984]
[1725529267773,0.05400345,56835.0,56831.0,0.087984]
[1725529267969,0.3608,56837.0,56831.0,0.087984]
[1725529268171,0.3608,56837.0,56836.0,0.002]
[1725529268681,0.1877,56841.0,56836.0,0.450775]
[1725529268880,0.0947,56842.0,56841.0,0.087969]
[1725529269075,0.12162441,56848.0,56844.0,0.087964]
[1725529269274,0.2981,56851.0,56847.0,0.6028]
[1725529269471,0.2981,56851.0,56850.0,0.242]
[1725529269674,0.12162441,56855.0,56850.0,0.24]
[1725529269870,0.13899933,56860.0,56854.0,0.6028]
[1725529270080,0.099,56861.0,56854.0,0.6028]
[1725529270081,0.099,56861.0,56859.0,0.6028]
[1725529270284,0.099,56861.0,56860.0,0.002]
[1725529270583,0.547738,56861.0,56860.0,0.002]
[1725529270782,0.787738,56861.0,56860.0,0.002]
[1725529271086,0.547738,56861.0,56859.0,0.24]
[1725529271285,0.002,56860.0,56859.0,0.24]
[1725529271580,0.002,56860.0,56859.0,0.6008]
[1725529271783,0.002,56860.0,56859.0,0.69748163]
[1725529271981,0.1061288,56860.0,56859.0,0.69748163]
[1725529272280,0.002,56860.0,56859.0,1.83908163]
[1725529272876,0.08671219,56864.0,56863.0,0.087935]
[1725529273085,0.08671219,56864.0,56863.0,0.329935]
[1725529273279,0.08671219,56869.0,56865.0,0.087931]
[1725529273478,0.08671219,56870.0,56868.0,0.242]
[1725529273684,0.08671219,56870.0,56869.0,0.002]
[1725529273885,0.2896438,56876.0,56868.0,0.242]
[1725529273886,0.1041288,56875.0,56868.0,0.242]
[1725529274080,0.08667065,56869.0,56868.0,0.242]
[1725529274387,0.3608,56872.0,56868.0,0.242]
[1725529274584,0.3608,56872.0,56871.0,0.242]
[1725529274985,0.3608,56872.0,56865.0,0.28447233]
[1725529274986,0.59496252,56872.0,56865.0,0.28447233]
[1725529275181,0.002,56866.0,56865.0,0.28447233]
[1725529275381,0.16209456,56866.0,56865.0,0.37240333]
[1725529275785,0.16209456,56866.0,56865.0,1.52028327]
[1725529275989,0.16209456,56866.0,56865.0,1.23581094]
[1725529276188,0.16209456,56866.0,56865.0,1.47581094]
[1725529276486,0.16209456,56866.0,56865.0,0.34825094]
[1725529276687,0.3608,56872.0,56865.0,0.58825094]
[1725529276892,0.3608,56866.0,56865.0,0.02031994]
[1725529277188,0.55485337,56866.0,56865.0,0.24]
[1725529277691,0.55585337,56866.0,56865.0,0.268]
[1725529278079,0.55586187,56866.0,56865.0,0.268]
[1725529279975,0.55586187,56866.0,56865.0,0.355931]
[1725529280396,0.55586187,56866.0,56865.0,1.483491]
[1725529280582,0.19506187,56866.0,56865.0,0.355931]
[1725529281483,0.55586187,56866.0,56865.0,0.355931]
[1725529281788,0.55586187,56866.0,56865.0,0.268]
[1725529281979,0.55586187,56866.0,56863.0,0.02026972]
[1725529282189,0.002,56864.0,56863.0,0.02026972]
[1725529282486,0.55686187,56864.0,56863.0,0.00026396]
[1725529282681,0.71886283,56864.0,56858.0,0.24]
[1725529282892,0.3628,56859.0,56858.0,0.24]
[1725529283088,0.3628,56859.0,56858.0,0.04640534]
[1725529283288,0.3628,56859.0,56858.0,0.00867978]
[1725529283491,0.3628,56859.0,56858.0,0.24]
[1725529283795,0.3628,56859.0,56853.0,0.08795]
[1725529283796,0.087948,56854.0,56853.0,0.00026396]
[1725529284092,1.218428,56854.0,56853.0,0.00026396]
[1725529284287,0.450748,56854.0,56853.0,0.00026396]
[1725529285684,0.464748,56854.0,56853.0,0.00026396]
[1725529286081,0.3768,56854.0,56853.0,0.32821396]
[1725529286282,0.016,56854.0,56853.0,0.32821396]
[1725529287078,0.03,56854.0,56853.0,0.32921396]
[1725529287493,0.03,56854.0,56853.0,0.85689396]
[1725529288003,0.3608,56860.0,56859.0,0.087941]
[1725529288185,0.3608,56860.0,56859.0,0.33881395]
[1725529290086,0.3608,56860.0,56859.0,0.002]
[1725529290292,0.3608,56860.0,56859.0,0.003]
[1725529290494,0.3618,56860.0,56859.0,0.004]
[1725529292295,0.3618,56860.0,56859.0,0.244]
[1725529292689,0.3618,56860.0,56859.0,0.004]
[1725529293198,0.449739,56860.0,56859.0,0.004]
[1725529293794,0.3618,56860.0,56859.0,0.25277444]
[1725529294006,0.3618,56860.0,56859.0,0.244]
[1725529294606,0.3618,56860.0,56859.0,0.25288355]
[1725529294901,0.3618,56860.0,56859.0,0.34082455]
[1725529297896,0.3618,56860.0,56859.0,0.10082455]
[1725529298398,0.3618,56860.0,56859.0,0.34082455]
[1725529299299,0.00026317,56864.0,56859.0,0.70162455]
[1725529299497,0.00026317,56864.0,56863.0,0.329935]
[1725529300609,0.00026317,56864.0,56863.0,0.343935]
[1725529300910,0.3608,56871.0,56870.0,0.087924]
[1725529301112,0.3608,56871.0,56870.0,0.329924]
[1725529301409,0.1024,56875.0,56874.0,0.087918]
[1725529301611,0.1024,56875.0,56874.0,0.329918]
[1725529302309,0.3608,56877.0,56876.0,0.087914]
[1725529302507,0.3608,56877.0,56876.0,0.089914]
[1725529304001,0.1045,56882.0,56881.0,0.087907]
[1725529304202,0.3608,56883.0,56882.0,0.087905]
[1725529304415,0.3608,56890.0,56889.0,0.087894]
[1725529304600,0.3608,56890.0,56889.0,0.329894]
[1725529305396,0.46467584,56896.0,56890.0,0.087892]
[1725529305607,0.3608,56896.0,56895.0,0.242]
[1725529307198,0.3608,56896.0,56895.0,0.256]
[1725529307407,0.10387584,56912.0,56900.0,0.087877]
[1725529307603,0.3608,56915.0,56911.0,0.002]
[1725529307604,0.10387584,56913.0,56911.0,0.002]
[1725529307907,0.24,56913.0,56911.0,0.002]
[1725529308110,0.614979,56912.0,56911.0,0.002]
[1725529308308,0.7192333,56912.0,56911.0,0.002]
[1725529308502,1.214979,56912.0,56911.0,0.002]
[1725529308701,1.214979,56912.0,56900.0,0.00026373]
[1725529308904,0.002,56901.0,56900.0,0.00026373]
[1725529309101,0.0999,56901.0,56900.0,0.24026373]
[1725529309307,0.0999,56901.0,56900.0,0.34214073]
[1725529310707,0.0999,56901.0,56900.0,0.01426373]
[1725529310912,0.0999,56901.0,56900.0,0.11614073]
[1725529311908,0.0999,56901.0,56900.0,0.02826373]
[1725529312211,0.0999,56901.0,56897.0,0.24]
[1725529312212,0.087878,56900.0,56897.0,0.24]
[1725529312512,0.002,56898.0,56897.0,0.24]
[1725529312711,0.13293379,56898.0,56897.0,0.24]
[1725529313115,0.09898463,56898.0,56897.0,0.24]
[1725529313710,0.09898463,56898.0,56897.0,0.241]
[1725529314717,0.11198463,56898.0,56897.0,0.242]
[1725529315111,0.11198463,56898.0,56897.0,0.001]
[1725529315310,0.12498463,56898.0,56897.0,0.089882]
[1725529315505,0.12498463,56898.0,56897.0,0.329882]
[1725529315712,0.12498463,56898.0,56897.0,0.690682]
[1725529316012,0.31565589,56898.0,56897.0,0.690682]
[1725529316525,0.12498463,56898.0,56897.0,0.690682]
[1725529320329,0.028,56898.0,56897.0,0.690682]
[1725529327520,0.31557601,56898.0,56897.0,0.690682]
[1725529328019,0.12497465,56898.0,56897.0,0.690682]
[1725529329423,0.12497465,56898.0,56897.0,0.450682]
[1725529329614,0.36497465,56898.0,56897.0,0.002]
[1725529329912,0.42800364,56898.0,56897.0,0.002]
[1725529330116,0.18700364,56898.0,56897.0,0.002]
[1725529330510,0.18701506,56898.0,56897.0,0.002]
[1725529330920,0.27489506,56898.0,56897.0,0.002]
[1725529333418,0.18701506,56898.0,56897.0,0.242]
[1725529334021,0.18701506,56898.0,56897.0,0.329882]
[1725529335231,0.027,56898.0,56897.0,0.089882]
[1725529335430,0.027,56898.0,56897.0,0.002]
[1725529339533,0.027,56898.0,56897.0,0.089882]
[1725529341721,0.027,56898.0,56897.0,0.14250668]
[1725529341919,0.027,56898.0,56897.0,0.089882]
[1725529343525,0.020097,56898.0,56897.0,0.089882]
[1725529343732,0.35310967,56903.0,56902.0,0.087874]
[1725529343927,0.450342,56910.0,56905.0,0.087869]
[1725529344137,0.450342,56910.0,56908.0,0.002]
[1725529344138,0.448662,56910.0,56908.0,0.002]
[1725529345227,0.103,56909.0,56908.0,0.002]
[1725529345730,0.190863,56909.0,56908.0,0.002]
[1725529346130,0.190863,56909.0,56908.0,0.016]
[1725529346542,0.190863,56909.0,56908.0,0.03]
[1725529347033,0.23481598,56909.0,56908.0,0.03]
[1725529347439,0.04395298,56909.0,56908.0,0.03]
[1725529347634,0.10424828,56923.0,56909.0,0.52712]
[1725529347840,0.10480323,56926.0,56922.0,0.7236]
[1725529348029,0.6008,56923.0,56922.0,0.002]
[1725529348430,1.72784,56923.0,56922.0,0.002]
[1725529349536,1.72784,56923.0,56922.0,0.016]
[1725529349934,1.72784,56923.0,56922.0,0.03]
[1725529350243,1.88780734,56923.0,56922.0,0.03]
[1725529350429,1.52700734,56923.0,56922.0,0.03]
[1725529350634,1.88780734,56923.0,56922.0,0.03]
[1725529350830,1.28780734,56923.0,56922.0,0.03]
[1725529351145,0.92700734,56923.0,56922.0,0.03]
[1725529351445,0.39996734,56923.0,56922.0,0.03]
[1725529351640,0.15996734,56923.0,56922.0,0.03]
[1725529351842,0.15996734,56923.0,56920.0,0.16879813]
[1725529352041,0.002,56921.0,56920.0,0.087846]
[1725529352345,0.16195381,56921.0,56920.0,0.087846]
[1725529352543,0.38853974,56921.0,56914.0,0.02041871]
[1725529352738,0.002,56915.0,56914.0,0.087856]
[1725529353040,0.16195381,56915.0,56914.0,0.327856]
[1725529355039,0.16195381,56915.0,56914.0,0.328856]
[1725529355339,0.1619555,56915.0,56914.0,0.328856]
[1725529355534,0.1759555,56915.0,56914.0,0.328856]
[1725529355733,0.08783,56931.0,56914.0,0.328856]
[1725529355734,0.21353804,56928.0,56915.0,0.614933]
[1725529355941,0.21353804,56928.0,56927.0,0.6028]
[1725529356139,0.10601303,56928.0,56927.0,0.690636]
[1725529356436,0.04301385,56928.0,56927.0,0.450636]
[1725529356641,0.04301385,56928.0,56927.0,0.690636]
[1725529357246,0.3608,56938.0,56927.0,0.690636]
[1725529357247,0.24,56936.0,56927.0,0.6028]
[1725529357438,0.24,56936.0,56935.0,0.002]
[1725529358043,1.36692,56936.0,56935.0,0.002]
[1725529358849,1.36692,56936.0,56935.0,0.016]
[1725529359949,0.76692,56936.0,56935.0,0.016]
[1725529360150,0.76692,56936.0,56935.0,0.03]
[1725529361046,1.36692,56936.0,56935.0,0.03]
[1725529361344,1.41255229,56936.0,56935.0,0.03]
[1725529361536,1.50000175,56936.0,56935.0,0.03]
[1725529362553,1.50000175,56936.0,56935.0,0.016]
[1725529362750,0.087828,56932.0,56917.0,0.24]
[1725529363048,0.001,56936.0,56935.0,0.087823]
[1725529363237,0.001,56936.0,56935.0,0.254]
[1725529363438,0.001,56936.0,56935.0,0.256]
[1725529363946,0.001,56936.0,56935.0,0.101823]
[1725529364546,0.001,56936.0,56935.0,0.341823]
[1725529365046,0.3608,56944.0,56943.0,0.087811]
[1725529365247,0.3608,56944.0,56943.0,0.08102991]
[1725529365248,0.52070564,56944.0,56943.0,0.08102991]
[1725529365459,0.52070564,56944.0,56943.0,0.002]
[1725529365460,1.88754564,56944.0,56943.0,0.002]
[1725529365857,1.28754564,56944.0,56943.0,0.002]
[1725529366249,1.30154564,56944.0,56943.0,0.002]
[1725529366747,0.17390564,56944.0,56943.0,0.002]
[1725529366953,0.18590564,56944.0,56943.0,0.003]
[1725529367254,0.18590564,56944.0,56943.0,0.090811]
[1725529368049,0.18490564,56944.0,56943.0,0.091811]
[1725529368251,0.18490564,56944.0,56943.0,0.004]
[1725529368862,0.18690564,56944.0,56943.0,0.003]
[1725529369557,0.17290564,56944.0,56943.0,0.003]
[1725529369755,0.19780326,56944.0,56943.0,0.003]
[1725529369955,0.18690213,56944.0,56943.0,0.003]
[1725529370358,0.18690213,56944.0,56943.0,0.00267548]
[1725529371365,0.18690213,56944.0,56943.0,0.087811]
[1725529372464,0.1093,56950.0,56943.0,0.087811]
[1725529372465,0.13920771,56963.0,56945.0,0.087808]
[1725529372773,0.13967926,56962.0,56957.0,0.3608]
[1725529372951,0.13967926,56962.0,56948.0,0.00026348]
[1725529372952,0.88748,56961.0,56948.0,0.00026348]
[1725529373153,0.3608,56954.0,56951.0,0.087799]
[1725529373359,0.3608,56954.0,56948.0,0.00026348]
[1725529373554,0.3608,56954.0,56948.0,0.08806648]
[1725529373757,0.002,56949.0,56948.0,0.00026348]
[1725529374070,0.002,56949.0,56948.0,0.32806648]
[1725529375077,0.005,56949.0,56948.0,0.32906648]
[1725529376058,0.005,56949.0,56948.0,0.33006648]
[1725529376972,0.2658,56954.0,56949.0,0.087801]
[1725529377172,0.2658,56954.0,56953.0,0.002]
[1725529378878,0.2658,56954.0,56953.0,0.090796]
[1725529378879,0.30879974,56954.0,56953.0,0.090796]
[1725529379272,0.30879974,56954.0,56953.0,0.11102755]
[1725529379477,0.30879974,56954.0,56953.0,0.11202755]
[1725529379783,0.30879973,56954.0,56953.0,0.11202755]
[1725529380269,0.42567517,56954.0,56951.0,0.20137249]
[1725529380471,0.002,56952.0,56951.0,0.20137249]
[1725529380781,0.16187517,56952.0,56951.0,0.28916949]
[1725529381166,0.11887544,56952.0,56951.0,0.28916949]
[1725529381473,0.16187414,56952.0,56951.0,0.67022938]
[1725529381780,0.38825852,56952.0,56951.0,1.79698938]
[1725529381964,0.0988958,56952.0,56951.0,1.79698938]
[1725529382164,0.0988958,56952.0,56951.0,1.88478838]
[1725529382372,0.0988958,56952.0,56951.0,1.88578838]
[1725529382573,0.0988958,56952.0,56951.0,0.76002838]
[1725529382773,0.0988958,56952.0,56951.0,0.67222938]
[1725529383177,0.0988958,56952.0,56951.0,0.38305989]
[1725529383480,0.16187414,56952.0,56951.0,0.3628]
[1725529383678,0.24967114,56952.0,56951.0,0.002]
[1725529384376,0.16187414,56952.0,56948.0,0.00026348]
[1725529384582,0.06497834,56952.0,56951.0,0.001]
[1725529384782,0.09689997,56952.0,56951.0,0.001]
[1725529384977,1.28663831,56952.0,56951.0,0.001]
[1725529385176,1.37443531,56952.0,56951.0,0.001]
[1725529385577,0.087802,56949.0,56948.0,0.00126348]
[1725529385774,0.42670197,56949.0,56948.0,0.00126348]
[1725529385977,0.77648031,56949.0,56948.0,0.00126348]
[1725529386179,0.24968031,56949.0,56948.0,0.36206348]
[1725529386385,0.09889997,56949.0,56948.0,0.44986648]
[1725529386888,0.16287831,56949.0,56948.0,0.37983927]
[1725529387086,0.38926269,56949.0,56948.0,0.49603927]
[1725529387387,0.003,56949.0,56948.0,0.49603927]
[1725529387882,0.017,56949.0,56948.0,0.38083927]
[1725529389685,0.017,56949.0,56948.0,0.29303627]
[1725529390282,0.017,56949.0,56948.0,0.29203627]
[1725529392083,0.017,56949.0,56948.0,0.37983927]
[1725529393782,0.017,56949.0,56948.0,0.29203627]
[1725529394289,0.465602,56949.0,56948.0,0.001]
[1725529394479,0.992402,56949.0,56948.0,0.001]
[1725529394676,1.896704,56949.0,56948.0,0.001]
[1725529394990,1.896704,56949.0,56943.0,0.36106348]
[1725529394991,0.175618,56944.0,56943.0,0.00026348]
[1725529395180,0.087825,56934.0,56933.0,0.3608]
[1725529395483,0.087828,56933.0,56930.0,0.38096589]
[1725529395685,0.087828,56933.0,56930.0,0.3608]
[1725529395686,0.002,56931.0,56930.0,0.3608]
[1725529395982,0.242,56931.0,56930.0,0.3608]
[1725529396192,0.85679,56931.0,56930.0,0.3608]
[1725529396394,0.087837,56927.0,56925.0,0.00026348]
[1725529396582,0.24,56926.0,56925.0,0.00026348]
[1725529396778,0.242,56926.0,56925.0,0.00026348]
[1725529397680,0.329837,56926.0,56925.0,0.00026348]
[1725529398388,0.016,56926.0,56925.0,0.08910248]
[1725529398784,0.001,56931.0,56930.0,0.087831]
[1725529398990,0.001,56931.0,56930.0,0.690631]
[1725529399281,0.00026348,56936.0,56935.0,0.087823]
[1725529399483,0.00026348,56936.0,56935.0,0.690623]
[1725529399982,0.00026348,56936.0,56935.0,0.750623]
[1725529401181,0.00226348,56936.0,56935.0,0.751623]
[1725529402683,0.04526886,56936.0,56935.0,0.751623]
[1725529402991,0.04526886,56936.0,56935.0,0.77166641]
[1725529402992,0.00226348,56936.0,56935.0,0.77166641]
[1725529403182,0.01626348,56936.0,56935.0,0.77266641]
[1725529405393,0.01426348,56936.0,56935.0,0.77166641]
[1725529405594,0.01426348,56936.0,56935.0,0.77266641]
[1725529407186,0.01426348,56936.0,56935.0,0.77166641]
[1725529407389,0.01426348,56936.0,56935.0,0.77266641]
[1725529407686,0.01426348,56936.0,56935.0,0.77166641]
[1725529407887,0.01426348,56936.0,56935.0,1.89958641]
[1725529408094,0.00026348,56936.0,56935.0,1.89858641]
[1725529408286,0.01326348,56936.0,56935.0,0.77266641]
[1725529408593,0.01326348,56936.0,56935.0,0.77166641]
[1725529408779,0.01326348,56936.0,56935.0,0.77266641]
[1725529409678,0.05626825,56936.0,56935.0,0.77266641]
[1725529409884,0.05726825,56936.0,56935.0,0.77266641]
[1725529410487,0.01426348,56936.0,56935.0,0.77266641]
[1725529410683,0.01426348,56936.0,56935.0,0.77166641]
[1725529410882,0.01426348,56936.0,56935.0,1.9522479]
[1725529411087,0.01426348,56936.0,56935.0,0.77266641]
[1725529411493,0.01426348,56936.0,56935.0,0.38484341]
[1725529411691,0.10208548,56936.0,56935.0,0.02304341]
[1725529411990,0.10208548,56936.0,56935.0,0.02404341]
[1725529413300,0.08808548,56936.0,56935.0,0.02304341]
[1725529413498,0.10208548,56936.0,56935.0,0.02404341]
[1725529415300,0.40208548,56936.0,56935.0,0.004]
[1725529415799,1.52900548,56936.0,56935.0,0.004]
[1725529416488,1.22900548,56936.0,56935.0,0.004]
[1725529417084,0.087823,56935.0,56934.0,0.00503738]
[1725529417289,0.089823,56935.0,56932.0,0.087827]
[1725529417486,0.002,56933.0,56932.0,0.087827]
[1725529417683,0.089823,56935.0,56932.0,0.087827]
[1725529417884,0.089823,56935.0,56934.0,0.002]
[1725529418280,0.089823,56935.0,56934.0,0.001]
[1725529418487,0.103823,56935.0,56934.0,0.001]
[1725529419093,0.103823,56935.0,56934.0,0.002]
[1725529421089,0.103823,56935.0,56932.0,0.10200229]
[1725529421292,0.002,56933.0,56932.0,0.10200229]
[1725529422291,0.002,56933.0,56932.0,0.10300229]
[1725529423092,0.016,56933.0,56932.0,0.10400229]
[1725529423899,0.018,56933.0,56932.0,0.10400229]
[1725529425393,0.018,56933.0,56932.0,0.34400229]
[1725529429311,0.018,56933.0,56932.0,0.34244307]
[1725529429798,0.018,56933.0,56932.0,0.10244307]
[1725529429995,0.06100933,56933.0,56932.0,0.10244307]
[1725529430197,0.06100933,56933.0,56932.0,0.02221966]
[1725529430401,0.105826,56933.0,56932.0,0.02221966]
[1725529431504,0.14883816,56933.0,56932.0,0.002]
[1725529431701,0.64948361,56933.0,56932.0,0.002]
[1725529432003,1.63656126,56933.0,56932.0,0.002]
[1725529432704,1.681372,56933.0,56932.0,0.002]
[1725529433308,0.087842,56923.0,56922.0,0.05700217]
[1725529433516,0.327842,56923.0,56922.0,0.05700217]
[1725529433698,0.329842,56923.0,56922.0,0.05700217]
[1725529434096,0.002,56923.0,56922.0,0.07752365]
[1725529434304,0.002,56923.0,56922.0,0.31752365]
[1725529435002,0.014,56923.0,56922.0,0.07852365]
[1725529435401,0.023,56923.0,56922.0,0.07952365]
[1725529435609,0.023,56923.0,56922.0,0.02252148]
[1725529435815,0.110842,56923.0,56922.0,0.02252148]
[1725529437307,0.110842,56923.0,56920.0,0.08649037]
[1725529437510,0.002,56921.0,56920.0,0.10683076]